[Event "*** Titled Tuesday Blitz"]
[Site "Chess.com"]
[Date "2020.03.03"]
[Round "6"]
[White "RitvarsReimanis"]
[Black "aridannie"]
[Result "0-1"]
[WhiteElo "2610"]
[BlackElo "2448"]
[TimeControl "180+1"]
[EndTime "14:02:03 PST"]
[Termination "aridannie won by resignation"]

1. d4 {[%clk 0:03:00.9]} 1... Nf6 {[%clk 0:02:59.7]} 2. c4 {[%clk 0:02:58.2]}
2... g6 {[%clk 0:02:59.5]} 3. Nc3 {[%clk 0:02:56.8]} 3... Bg7 {[%clk 0:02:59.7]}
4. e4 {[%clk 0:02:56.9]} 4... d6 {[%clk 0:03:00.1]} 5. Be2 {[%clk 0:02:56.9]}
5... O-O {[%clk 0:03:00.1]} 6. Nf3 {[%clk 0:02:57.5]} 6... Na6 {[%clk
0:02:59.9]} 7. O-O {[%clk 0:02:54.3]} 7... e5 {[%clk 0:02:59.6]} 8. Be3 {[%clk
0:02:52.2]} 8... c6 {[%clk 0:02:59.5]} 9. d5 {[%clk 0:02:49.1]} 9... Ng4 {[%clk
0:02:53.8]} 10. Bg5 {[%clk 0:02:48.4]} 10... f6 {[%clk 0:02:53]} 11. Bh4 {[%clk
0:02:48.6]} 11... h5 {[%clk 0:02:50.5]} 12. Ne1 {[%clk 0:02:42.6]} 12... c5
{[%clk 0:02:47.8]} 13. Rb1 {[%clk 0:02:26.6]} 13... Nh6 {[%clk 0:02:36.5]} 14.
f3 {[%clk 0:02:15.7]} 14... Nc7 {[%clk 0:02:32.9]} 15. Nd3 {[%clk 0:02:14.4]}
15... Qe8 {[%clk 0:02:27.5]} 16. b4 {[%clk 0:02:07.6]} 16... b6 {[%clk
0:02:26.2]} 17. bxc5 {[%clk 0:02:00.9]} 17... bxc5 {[%clk 0:02:25.1]} 18. Qb3
{[%clk 0:01:41.7]} 18... f5 {[%clk 0:02:20.1]} 19. Qa3 {[%clk 0:01:24]} 19...
Bf6 {[%clk 0:02:12.7]} 20. Bf2 {[%clk 0:01:15.4]} 20... f4 {[%clk 0:02:10.2]}
21. Qa5 {[%clk 0:01:11.8]} 21... Bd8 {[%clk 0:02:04.3]} 22. Qa4 {[%clk
0:01:11.8]} 22... Bd7 {[%clk 0:02:02.2]} 23. Qa3 {[%clk 0:01:11.2]} 23... g5
{[%clk 0:01:59.1]} 24. Rb7 {[%clk 0:01:00.6]} 24... g4 {[%clk 0:01:58.5]} 25.
Rfb1 {[%clk 0:00:57]} 25... Qg6 {[%clk 0:01:54.6]} 26. Rxc7 {[%clk 0:00:40.7]}
26... Bxc7 {[%clk 0:01:50.9]} 27. Rb7 {[%clk 0:00:41.3]} 27... Rfc8 {[%clk
0:01:32.1]} 28. Bh4 {[%clk 0:00:31]} 28... gxf3 {[%clk 0:01:26.1]} 29. Bxf3
{[%clk 0:00:31.1]} 29... Bg4 {[%clk 0:01:25.5]} 30. Ne1 {[%clk 0:00:29.4]} 30...
Bxf3 {[%clk 0:01:24]} 31. Nxf3 {[%clk 0:00:30.3]} 31... Ng4 {[%clk 0:01:24.1]}
32. Qa6 {[%clk 0:00:28.2]} 32... Ne3 {[%clk 0:01:21.7]} 33. Ne1 {[%clk
0:00:23.7]} 33... f3 {[%clk 0:01:15.7]} 34. g3 {[%clk 0:00:21.6]} 34... Rf8
{[%clk 0:01:00.3]} 35. Nd3 {[%clk 0:00:21.5]} 35... Bd8 {[%clk 0:00:53.1]} 36.
Bxd8 {[%clk 0:00:20.4]} 36... Raxd8 {[%clk 0:00:52.6]} 37. Qxa7 {[%clk
0:00:16.4]} 37... h4 {[%clk 0:00:51]} 38. Kf2 {[%clk 0:00:14.8]} 38... Ng4+
{[%clk 0:00:49.3]} 39. Ke1 {[%clk 0:00:13.7]} 39... hxg3 {[%clk 0:00:48.6]} 40.
hxg3 {[%clk 0:00:13.9]} 40... f2+ {[%clk 0:00:48.6]} 41. Ke2 {[%clk 0:00:14.3]}
41... f1=Q+ {[%clk 0:00:46.6]} 0-1

[Event "*** Titled Tuesday Blitz"]
[Site "Chess.com"]
[Date "2020.03.03"]
[Round "6"]
[White "Rubinstein_Akiba"]
[Black "saraswathii"]
[Result "1-0"]
[WhiteElo "2353"]
[BlackElo "2224"]
[TimeControl "180+1"]
[EndTime "14:02:12 PST"]
[Termination "Rubinstein_Akiba won by resignation"]

1. e4 {[%clk 0:02:57.3]} 1... c5 {[%clk 0:02:53.6]} 2. Be2 {[%clk 0:02:56.6]}
2... e6 {[%clk 0:02:51.9]} 3. f4 {[%clk 0:02:54.4]} 3... d5 {[%clk 0:02:51]} 4.
d3 {[%clk 0:02:54.5]} 4... Nc6 {[%clk 0:02:49.5]} 5. Nf3 {[%clk 0:02:54]} 5...
Nf6 {[%clk 0:02:49.4]} 6. e5 {[%clk 0:02:53.5]} 6... Nd7 {[%clk 0:02:47.7]} 7.
O-O {[%clk 0:02:52.8]} 7... g6 {[%clk 0:02:45.8]} 8. c3 {[%clk 0:02:52.6]} 8...
Bg7 {[%clk 0:02:45]} 9. d4 {[%clk 0:02:52.6]} 9... cxd4 {[%clk 0:02:43]} 10.
cxd4 {[%clk 0:02:53.5]} 10... O-O {[%clk 0:02:29.2]} 11. Be3 {[%clk 0:02:51.5]}
11... Qb6 {[%clk 0:02:28.8]} 12. Qd2 {[%clk 0:02:49.6]} 12... f6 {[%clk
0:02:25.9]} 13. Nc3 {[%clk 0:02:47.8]} 13... a6 {[%clk 0:02:23.5]} 14. g4 {[%clk
0:02:44.3]} 14... Qc7 {[%clk 0:02:13.6]} 15. Kh1 {[%clk 0:02:41.1]} 15... b5
{[%clk 0:02:13]} 16. a3 {[%clk 0:02:40.6]} 16... Bb7 {[%clk 0:02:13.1]} 17. Rac1
{[%clk 0:02:37.7]} 17... Nb6 {[%clk 0:02:10]} 18. b3 {[%clk 0:02:36.7]} 18...
Qe7 {[%clk 0:02:09.2]} 19. Nb1 {[%clk 0:02:30.2]} 19... Rac8 {[%clk 0:01:51.7]}
20. Bd3 {[%clk 0:02:21.9]} 20... Rc7 {[%clk 0:01:37.3]} 21. Rc5 {[%clk
0:02:11.1]} 21... Rfc8 {[%clk 0:01:25.9]} 22. Rfc1 {[%clk 0:02:08]} 22... Nd7
{[%clk 0:01:09.6]} 23. R5c2 {[%clk 0:02:05.2]} 23... Nb6 {[%clk 0:01:09.2]} 24.
exf6 {[%clk 0:01:57.8]} 24... Bxf6 {[%clk 0:01:04.8]} 25. Ne5 {[%clk 0:01:57.4]}
25... Nd8 {[%clk 0:00:51]} 26. Rxc7 {[%clk 0:01:44.9]} 26... Rxc7 {[%clk
0:00:48.1]} 27. Re1 {[%clk 0:01:41]} 27... Nd7 {[%clk 0:00:36.1]} 28. Rf1 {[%clk
0:01:25.8]} 28... Bg7 {[%clk 0:00:23.7]} 29. Qa5 {[%clk 0:01:22]} 29... Nxe5
{[%clk 0:00:19.3]} 30. fxe5 {[%clk 0:01:19]} 30... Nc6 {[%clk 0:00:18.3]} 31.
Qd2 {[%clk 0:01:16.9]} 31... Nxe5 {[%clk 0:00:14.8]} 32. Bg5 {[%clk 0:01:10.4]}
32... Qd6 {[%clk 0:00:11.3]} 33. dxe5 {[%clk 0:00:45.4]} 33... d4+ {[%clk
0:00:10.5]} 34. Kg1 {[%clk 0:00:44.9]} 34... Bxe5 {[%clk 0:00:10.2]} 35. Qf2
{[%clk 0:00:40.6]} 35... b4 {[%clk 0:00:03.9]} 36. Bh6 {[%clk 0:00:39.9]} 36...
Rc8 {[%clk 0:00:02.2]} 37. Qf7+ {[%clk 0:00:39.3]} 37... Kh8 {[%clk 0:00:02.1]}
38. Qxb7 {[%clk 0:00:38.5]} 38... Bxh2+ {[%clk 0:00:01.7]} 39. Kh1 {[%clk
0:00:38.4]} 1-0

[Event "*** Titled Tuesday Blitz"]
[Site "Chess.com"]
[Date "2020.03.03"]
[Round "6"]
[White "kasparicy"]
[Black "Harry_Rakkel"]
[Result "1-0"]
[WhiteElo "2370"]
[BlackElo "2514"]
[TimeControl "180+1"]
[EndTime "14:02:17 PST"]
[Termination "kasparicy won on time"]

1. e4 {[%clk 0:00:40.8]} 1... c5 {[%clk 0:02:56.6]} 2. Nf3 {[%clk 0:00:38.3]}
2... e6 {[%clk 0:02:54.7]} 3. d4 {[%clk 0:00:38.7]} 3... cxd4 {[%clk 0:02:54.8]}
4. Nxd4 {[%clk 0:00:39.6]} 4... Nc6 {[%clk 0:02:54.8]} 5. Nc3 {[%clk 0:00:39.4]}
5... d6 {[%clk 0:02:54.7]} 6. Be3 {[%clk 0:00:36.5]} 6... Nf6 {[%clk 0:02:52.4]}
7. g4 {[%clk 0:00:35.8]} 7... a6 {[%clk 0:02:48.7]} 8. g5 {[%clk 0:00:35.7]}
8... Nd7 {[%clk 0:02:48.4]} 9. h4 {[%clk 0:00:36]} 9... Qc7 {[%clk 0:02:39.1]}
10. Qd2 {[%clk 0:00:35.8]} 10... Nxd4 {[%clk 0:02:37.9]} 11. Bxd4 {[%clk
0:00:35.7]} 11... b5 {[%clk 0:02:37.5]} 12. O-O-O {[%clk 0:00:34.5]} 12... b4
{[%clk 0:02:36.7]} 13. Ne2 {[%clk 0:00:33.7]} 13... e5 {[%clk 0:02:35.5]} 14.
Be3 {[%clk 0:00:33.1]} 14... a5 {[%clk 0:02:34.7]} 15. Kb1 {[%clk 0:00:32.6]}
15... Bb7 {[%clk 0:02:28.3]} 16. Ng3 {[%clk 0:00:31.6]} 16... g6 {[%clk
0:02:25.2]} 17. h5 {[%clk 0:00:30.3]} 17... Nc5 {[%clk 0:02:18.2]} 18. Bb5+
{[%clk 0:00:29.6]} 18... Bc6 {[%clk 0:02:14.4]} 19. Bxc6+ {[%clk 0:00:25.9]}
19... Qxc6 {[%clk 0:02:14.3]} 20. f4 {[%clk 0:00:26.1]} 20... Be7 {[%clk
0:02:03.6]} 21. f5 {[%clk 0:00:19.5]} 21... Ra6 {[%clk 0:01:52.4]} 22. hxg6
{[%clk 0:00:18.2]} 22... fxg6 {[%clk 0:01:50.9]} 23. fxg6 {[%clk 0:00:17.1]}
23... b3 {[%clk 0:01:40.8]} 24. axb3 {[%clk 0:00:15.1]} 24... a4 {[%clk
0:01:40.4]} 25. b4 {[%clk 0:00:15.5]} 25... Nxe4 {[%clk 0:01:39.7]} 26. Nxe4
{[%clk 0:00:14.6]} 26... Qxe4 {[%clk 0:01:39.4]} 27. g7 {[%clk 0:00:12.3]} 27...
Rg8 {[%clk 0:01:39]} 28. Rhe1 {[%clk 0:00:04]} 28... Qc4 {[%clk 0:01:19.9]} 29.
Qd3 {[%clk 0:00:03.2]} 1-0

[Event "*** Titled Tuesday Blitz"]
[Site "Chess.com"]
[Date "2020.03.03"]
[Round "6"]
[White "GMsKoRPioN"]
[Black "Maili15"]
[Result "0-1"]
[WhiteElo "2484"]
[BlackElo "2341"]
[TimeControl "180+1"]
[EndTime "14:02:18 PST"]
[Termination "Maili15 won by checkmate"]

1. d4 {[%clk 0:02:59.4]} 1... d5 {[%clk 0:02:59.7]} 2. c4 {[%clk 0:02:58.9]}
2... e6 {[%clk 0:02:59.5]} 3. Nf3 {[%clk 0:02:59.1]} 3... dxc4 {[%clk
0:02:58.5]} 4. a4 {[%clk 0:02:55.8]} 4... Nf6 {[%clk 0:02:57]} 5. e3 {[%clk
0:02:56]} 5... a6 {[%clk 0:02:55.8]} 6. Bxc4 {[%clk 0:02:56.1]} 6... c5 {[%clk
0:02:56]} 7. O-O {[%clk 0:02:51.7]} 7... cxd4 {[%clk 0:02:54.8]} 8. exd4 {[%clk
0:02:51.9]} 8... Nc6 {[%clk 0:02:54.4]} 9. Nc3 {[%clk 0:02:50.1]} 9... Be7
{[%clk 0:02:54]} 10. Bf4 {[%clk 0:02:44.9]} 10... O-O {[%clk 0:02:53.2]} 11. Rc1
{[%clk 0:02:40.4]} 11... Nb4 {[%clk 0:02:51.7]} 12. Qe2 {[%clk 0:02:38.2]} 12...
Bd7 {[%clk 0:02:46.7]} 13. Ne5 {[%clk 0:02:36.1]} 13... Rc8 {[%clk 0:02:41.7]}
14. Bb3 {[%clk 0:02:33.9]} 14... Bc6 {[%clk 0:02:33.3]} 15. Nxc6 {[%clk
0:02:32.1]} 15... Rxc6 {[%clk 0:02:34.2]} 16. Rfd1 {[%clk 0:02:23.5]} 16... Qd7
{[%clk 0:02:21.2]} 17. a5 {[%clk 0:01:56.4]} 17... Qd8 {[%clk 0:02:07.3]} 18. d5
{[%clk 0:01:06.3]} 18... exd5 {[%clk 0:01:54.2]} 19. Bg5 {[%clk 0:01:02.1]}
19... Re6 {[%clk 0:01:44]} 20. Qf3 {[%clk 0:01:00.2]} 20... Qxa5 {[%clk
0:01:36.7]} 21. Bxf6 {[%clk 0:00:47.4]} 21... Rxf6 {[%clk 0:01:32.2]} 22. Qh5
{[%clk 0:00:40.5]} 22... Bc5 {[%clk 0:01:27.3]} 23. Nxd5 {[%clk 0:00:23.2]}
23... Nxd5 {[%clk 0:01:16.4]} 24. Bxd5 {[%clk 0:00:24.1]} 24... Bxf2+ {[%clk
0:01:09]} 25. Kh1 {[%clk 0:00:22.6]} 25... Qb6 {[%clk 0:01:02.1]} 26. b3 {[%clk
0:00:17.9]} 26... g6 {[%clk 0:00:51.5]} 27. Qg5 {[%clk 0:00:11.9]} 27... Be3
{[%clk 0:00:48.3]} 28. Qh4 {[%clk 0:00:05.9]} 28... Bxc1 {[%clk 0:00:46.9]} 29.
Rxc1 {[%clk 0:00:06.8]} 29... Qe3 {[%clk 0:00:41.8]} 30. Rg1 {[%clk 0:00:05]}
30... Rf4 {[%clk 0:00:29.6]} 31. Qh6 {[%clk 0:00:03.7]} 31... Rd8 {[%clk
0:00:16.5]} 32. Bc4 {[%clk 0:00:03.9]} 32... Qxg1+ {[%clk 0:00:12.9]} 33. Kxg1
{[%clk 0:00:03.5]} 33... Rd1+ {[%clk 0:00:13.3]} 34. Bf1 {[%clk 0:00:04.1]}
34... Rdxf1# {[%clk 0:00:13.5]} 0-1

[Event "*** Titled Tuesday Blitz"]
[Site "Chess.com"]
[Date "2020.03.03"]
[Round "6"]
[White "mrkvoz"]
[Black "praveenb2002"]
[Result "0-1"]
[WhiteElo "2797"]
[BlackElo "2662"]
[TimeControl "180+1"]
[EndTime "14:02:21 PST"]
[Termination "praveenb2002 won on time"]

1. e4 {[%clk 0:03:00.7]} 1... c5 {[%clk 0:02:53]} 2. Nf3 {[%clk 0:03:00.7]} 2...
d6 {[%clk 0:02:52.3]} 3. Bb5+ {[%clk 0:03:00.2]} 3... Nd7 {[%clk 0:02:51.5]} 4.
a4 {[%clk 0:02:59.4]} 4... Nf6 {[%clk 0:02:50.2]} 5. Nc3 {[%clk 0:02:58.7]} 5...
e6 {[%clk 0:02:48.6]} 6. d4 {[%clk 0:02:52.9]} 6... cxd4 {[%clk 0:02:48.2]} 7.
Qxd4 {[%clk 0:02:53.8]} 7... Be7 {[%clk 0:02:47.5]} 8. O-O {[%clk 0:02:48.5]}
8... O-O {[%clk 0:02:47.2]} 9. Rd1 {[%clk 0:02:45.9]} 9... a6 {[%clk 0:02:46.6]}
10. Be2 {[%clk 0:02:37.1]} 10... b6 {[%clk 0:02:46.7]} 11. Nd2 {[%clk
0:02:30.7]} 11... Bb7 {[%clk 0:02:45.8]} 12. Nc4 {[%clk 0:02:18]} 12... d5
{[%clk 0:02:45.2]} 13. exd5 {[%clk 0:02:17.9]} 13... Nxd5 {[%clk 0:02:42.3]} 14.
Nxd5 {[%clk 0:02:17.8]} 14... Bxd5 {[%clk 0:02:40.2]} 15. Ne3 {[%clk 0:02:18.3]}
15... Bc6 {[%clk 0:02:33.7]} 16. Nc4 {[%clk 0:01:39.1]} 16... Qc7 {[%clk
0:02:31.1]} 17. Bf4 {[%clk 0:01:37.3]} 17... Qb7 {[%clk 0:02:29.3]} 18. Bf1
{[%clk 0:01:34.3]} 18... Nc5 {[%clk 0:02:22.7]} 19. Nd6 {[%clk 0:01:32.4]} 19...
Qa7 {[%clk 0:02:19.5]} 20. b3 {[%clk 0:01:23.1]} 20... Rad8 {[%clk 0:02:14.7]}
21. Qe3 {[%clk 0:01:22.7]} 21... Bf6 {[%clk 0:02:06.2]} 22. Rab1 {[%clk
0:01:12]} 22... Rd7 {[%clk 0:01:56.3]} 23. Nc4 {[%clk 0:01:07]} 23... Rd5 {[%clk
0:01:33.7]} 24. a5 {[%clk 0:01:04.4]} 24... bxa5 {[%clk 0:00:49.2]} 25. Nxa5
{[%clk 0:01:05.3]} 25... Qb6 {[%clk 0:00:44.4]} 26. Nc4 {[%clk 0:00:39.4]} 26...
Qb4 {[%clk 0:00:44.1]} 27. Bd6 {[%clk 0:00:35.3]} 27... Rc8 {[%clk 0:00:42.4]}
28. c3 {[%clk 0:00:22.1]} 28... Bxc3 {[%clk 0:00:32.3]} 29. Rbc1 {[%clk
0:00:12.1]} 29... Rxd1 {[%clk 0:00:31.4]} 30. Rxd1 {[%clk 0:00:13]} 30... Bd5
{[%clk 0:00:29.9]} 31. Bxc5 {[%clk 0:00:06.1]} 31... Rxc5 {[%clk 0:00:29]} 32.
Qf4 {[%clk 0:00:03.4]} 32... Qxb3 {[%clk 0:00:25.5]} 33. Qd6 {[%clk 0:00:02.3]}
33... Rc8 {[%clk 0:00:23]} 34. Nb6 {[%clk 0:00:02.4]} 34... Rf8 {[%clk
0:00:11.2]} 35. Rd3 {[%clk 0:00:01.8]} 35... Be4 {[%clk 0:00:08.6]} 0-1

[Event "*** Titled Tuesday Blitz"]
[Site "Chess.com"]
[Date "2020.03.03"]
[Round "6"]
[White "farzadbfd"]
[Black "cherryandmint"]
[Result "1-0"]
[WhiteElo "2635"]
[BlackElo "2837"]
[TimeControl "180+1"]
[EndTime "14:02:25 PST"]
[Termination "farzadbfd won on time"]

1. Nf3 {[%clk 0:03:00.9]} 1... d5 {[%clk 0:03:00]} 2. b3 {[%clk 0:03:01]} 2...
Nf6 {[%clk 0:03:00]} 3. Bb2 {[%clk 0:03:01.3]} 3... e6 {[%clk 0:02:59.4]} 4. e3
{[%clk 0:02:59.5]} 4... Be7 {[%clk 0:02:59.5]} 5. Be2 {[%clk 0:02:59.3]} 5...
O-O {[%clk 0:03:00.1]} 6. O-O {[%clk 0:02:59.8]} 6... c5 {[%clk 0:02:58.4]} 7.
c4 {[%clk 0:03:00.4]} 7... Nc6 {[%clk 0:02:58.3]} 8. cxd5 {[%clk 0:03:00.6]}
8... Nxd5 {[%clk 0:02:57.6]} 9. d4 {[%clk 0:02:58.1]} 9... b6 {[%clk 0:02:57.7]}
10. Nbd2 {[%clk 0:02:56.5]} 10... Bb7 {[%clk 0:02:57.4]} 11. Ne4 {[%clk
0:02:53]} 11... cxd4 {[%clk 0:02:24.5]} 12. Nxd4 {[%clk 0:02:49.5]} 12... Nxe3
{[%clk 0:02:17.3]} 13. fxe3 {[%clk 0:02:09.8]} 13... Nxd4 {[%clk 0:02:16.1]} 14.
Bd3 {[%clk 0:02:09.3]} 14... Nf5 {[%clk 0:02:09.2]} 15. Qe2 {[%clk 0:02:09.4]}
15... Rc8 {[%clk 0:01:21.4]} 16. Rad1 {[%clk 0:02:08.7]} 16... Qc7 {[%clk
0:01:21]} 17. Rc1 {[%clk 0:01:46]} 17... Qb8 {[%clk 0:01:18.8]} 18. Qg4 {[%clk
0:01:46.1]} 18... Rxc1 {[%clk 0:01:14.7]} 19. Rxc1 {[%clk 0:01:46.3]} 19... Rd8
{[%clk 0:01:02.8]} 20. Qe2 {[%clk 0:01:37.1]} 20... Qa8 {[%clk 0:00:56.6]} 21.
Ng3 {[%clk 0:01:18.9]} 21... Nxg3 {[%clk 0:00:54.8]} 22. hxg3 {[%clk 0:01:19.8]}
22... g6 {[%clk 0:00:46.5]} 23. e4 {[%clk 0:01:14.4]} 23... Bc5+ {[%clk
0:00:44.7]} 24. Kh2 {[%clk 0:01:12.2]} 24... Bd4 {[%clk 0:00:45.3]} 25. Bxd4
{[%clk 0:01:09.9]} 25... Rxd4 {[%clk 0:00:46.2]} 26. Rc7 {[%clk 0:01:10.6]}
26... Qd8 {[%clk 0:00:26]} 27. Rxb7 {[%clk 0:01:04.8]} 27... Rxd3 {[%clk
0:00:26.2]} 28. Rxa7 {[%clk 0:01:05.7]} 28... Rc3 {[%clk 0:00:15.8]} 29. Qf2
{[%clk 0:00:54.1]} 29... f6 {[%clk 0:00:09.2]} 30. Qf4 {[%clk 0:00:48.6]} 30...
e5 {[%clk 0:00:09.1]} 31. Qh6 {[%clk 0:00:47.2]} 31... Rc7 {[%clk 0:00:07.6]}
32. Ra4 {[%clk 0:00:36.5]} 32... Rc2 {[%clk 0:00:03.3]} 33. Ra7 {[%clk
0:00:32.9]} 33... Rc7 {[%clk 0:00:03.2]} 34. Ra4 {[%clk 0:00:33]} 34... Rd7
{[%clk 0:00:03]} 35. Rc4 {[%clk 0:00:31.4]} 35... Qf8 {[%clk 0:00:02.8]} 36. Qc1
{[%clk 0:00:30.8]} 36... Qf7 {[%clk 0:00:02.3]} 37. Rc6 {[%clk 0:00:28.5]} 37...
Rb7 {[%clk 0:00:02.9]} 38. Qh6 {[%clk 0:00:24]} 38... b5 {[%clk 0:00:03]} 39.
Rc8+ {[%clk 0:00:23]} 1-0

[Event "*** Titled Tuesday Blitz"]
[Site "Chess.com"]
[Date "2020.03.03"]
[Round "6"]
[White "LogoCzar"]
[Black "dlp300"]
[Result "1-0"]
[WhiteElo "2506"]
[BlackElo "2649"]
[TimeControl "180+1"]
[EndTime "14:02:25 PST"]
[Termination "LogoCzar won by resignation"]

1. e4 {[%clk 0:03:00.9]} 1... e5 {[%clk 0:02:59.6]} 2. Nf3 {[%clk 0:03:00.3]}
2... Nc6 {[%clk 0:03:00.1]} 3. Bb5 {[%clk 0:03:00.3]} 3... a6 {[%clk 0:03:00.2]}
4. Ba4 {[%clk 0:03:00.7]} 4... Nf6 {[%clk 0:03:00.8]} 5. O-O {[%clk 0:03:01.1]}
5... Be7 {[%clk 0:02:57.4]} 6. Re1 {[%clk 0:03:01.4]} 6... b5 {[%clk 0:02:57.4]}
7. Bb3 {[%clk 0:03:01.8]} 7... d6 {[%clk 0:02:58.3]} 8. c3 {[%clk 0:03:01.7]}
8... O-O {[%clk 0:02:57.5]} 9. h3 {[%clk 0:03:02.1]} 9... Nb8 {[%clk 0:02:56.3]}
10. d4 {[%clk 0:03:02.2]} 10... Nbd7 {[%clk 0:02:56.7]} 11. Nbd2 {[%clk
0:03:02.3]} 11... Bb7 {[%clk 0:02:56]} 12. Bc2 {[%clk 0:03:02.2]} 12... Re8
{[%clk 0:02:55.7]} 13. Nf1 {[%clk 0:03:02.2]} 13... Bf8 {[%clk 0:02:55.9]} 14.
Ng3 {[%clk 0:03:02.6]} 14... g6 {[%clk 0:02:56]} 15. a4 {[%clk 0:03:02.9]} 15...
c6 {[%clk 0:02:55.3]} 16. Bg5 {[%clk 0:03:02.1]} 16... h6 {[%clk 0:02:54.9]} 17.
Be3 {[%clk 0:03:00.9]} 17... Bg7 {[%clk 0:02:55.1]} 18. Qd2 {[%clk 0:03:00.3]}
18... Kh7 {[%clk 0:02:55.4]} 19. Nh2 {[%clk 0:03:00]} 19... d5 {[%clk 0:02:40]}
20. exd5 {[%clk 0:02:41.1]} 20... Nxd5 {[%clk 0:02:39.5]} 21. Nh5 {[%clk
0:02:26.8]} 21... Nxe3 {[%clk 0:02:35.4]} 22. Rxe3 {[%clk 0:02:23.2]} 22... Bh8
{[%clk 0:02:12.3]} 23. Rf3 {[%clk 0:02:13.4]} 23... f5 {[%clk 0:02:00.3]} 24.
Bxf5 {[%clk 0:01:44.2]} 24... gxf5 {[%clk 0:01:55.7]} 25. Rxf5 {[%clk
0:01:44.1]} 25... Nf6 {[%clk 0:01:35.9]} 26. Ng4 {[%clk 0:01:29.2]} 26... Nxg4
{[%clk 0:01:34.1]} 27. hxg4 {[%clk 0:01:25]} 27... Re7 {[%clk 0:01:01]} 28. g5
{[%clk 0:01:01.1]} 28... Qd7 {[%clk 0:00:54.5]} 29. Rf6 {[%clk 0:00:50.8]} 29...
Qg4 {[%clk 0:00:47.1]} 30. Rxh6+ {[%clk 0:00:43.6]} 30... Kg8 {[%clk 0:00:47.1]}
31. Qc2 {[%clk 0:00:31.2]} 31... e4 {[%clk 0:00:29.9]} 32. Qb3+ {[%clk
0:00:30.6]} 32... Rf7 {[%clk 0:00:18.6]} 33. Rxh8+ {[%clk 0:00:17.4]} 33... Kxh8
{[%clk 0:00:18.4]} 34. Qxf7 {[%clk 0:00:17.7]} 34... Rg8 {[%clk 0:00:16.5]} 35.
Qxg8+ {[%clk 0:00:11.7]} 35... Kxg8 {[%clk 0:00:15.9]} 36. Nf6+ {[%clk
0:00:12.1]} 1-0

[Event "*** Titled Tuesday Blitz"]
[Site "Chess.com"]
[Date "2020.03.03"]
[Round "6"]
[White "BeanScreen"]
[Black "Godzillator"]
[Result "1/2-1/2"]
[WhiteElo "2644"]
[BlackElo "2417"]
[TimeControl "180+1"]
[EndTime "14:02:26 PST"]
[Termination "Game drawn by repetition"]

1. e4 {[%clk 0:03:00.8]} 1... c6 {[%clk 0:03:00.2]} 2. d4 {[%clk 0:03:00.4]}
2... d5 {[%clk 0:03:01]} 3. exd5 {[%clk 0:03:01.3]} 3... cxd5 {[%clk 0:03:01.1]}
4. Bd3 {[%clk 0:03:02]} 4... Nc6 {[%clk 0:03:00.9]} 5. c3 {[%clk 0:03:01.7]}
5... Nf6 {[%clk 0:03:01.2]} 6. Bf4 {[%clk 0:03:01.8]} 6... Bg4 {[%clk
0:03:01.2]} 7. Qb3 {[%clk 0:03:02.1]} 7... Qc8 {[%clk 0:03:01.8]} 8. Nd2 {[%clk
0:03:02.3]} 8... e6 {[%clk 0:03:02.2]} 9. Ngf3 {[%clk 0:03:02.5]} 9... Be7
{[%clk 0:03:02.7]} 10. O-O {[%clk 0:03:02.2]} 10... Bh5 {[%clk 0:03:02.5]} 11.
Ne5 {[%clk 0:02:57.4]} 11... Nxe5 {[%clk 0:03:01.9]} 12. dxe5 {[%clk 0:02:48.6]}
12... Nd7 {[%clk 0:03:02]} 13. c4 {[%clk 0:02:48]} 13... d4 {[%clk 0:02:58.9]}
14. Ne4 {[%clk 0:02:46.8]} 14... O-O {[%clk 0:02:56.5]} 15. Qc2 {[%clk
0:02:45.6]} 15... Bg6 {[%clk 0:02:55.5]} 16. Rac1 {[%clk 0:02:33.8]} 16... Nc5
{[%clk 0:02:55.3]} 17. Nxc5 {[%clk 0:02:31.9]} 17... Qxc5 {[%clk 0:02:54.7]} 18.
Bxg6 {[%clk 0:02:30.9]} 18... hxg6 {[%clk 0:02:54.1]} 19. Rfd1 {[%clk
0:02:30.5]} 19... Rfd8 {[%clk 0:02:52.8]} 20. Qe4 {[%clk 0:02:25.8]} 20... Rd7
{[%clk 0:02:51.3]} 21. Rd3 {[%clk 0:02:25.1]} 21... Rad8 {[%clk 0:02:50.7]} 22.
a3 {[%clk 0:02:23.8]} 22... a5 {[%clk 0:02:49.9]} 23. Bd2 {[%clk 0:02:12.5]}
23... Qb6 {[%clk 0:02:44.2]} 24. b4 {[%clk 0:02:11.3]} 24... axb4 {[%clk
0:02:43.6]} 25. axb4 {[%clk 0:02:12.2]} 25... Qc6 {[%clk 0:02:29.7]} 26. Qxc6
{[%clk 0:01:59.2]} 26... bxc6 {[%clk 0:02:29.7]} 27. c5 {[%clk 0:02:00.1]} 27...
Rd5 {[%clk 0:02:27.1]} 28. f4 {[%clk 0:02:00]} 28... g5 {[%clk 0:02:22.8]} 29.
g3 {[%clk 0:01:55.7]} 29... gxf4 {[%clk 0:02:22.9]} 30. gxf4 {[%clk 0:01:56.6]}
30... g5 {[%clk 0:02:23.3]} 31. fxg5 {[%clk 0:01:56.9]} 31... Rxe5 {[%clk
0:02:23.7]} 32. h4 {[%clk 0:01:40]} 32... Re4 {[%clk 0:02:07.3]} 33. Be1 {[%clk
0:01:32.7]} 33... Rb8 {[%clk 0:02:05.2]} 34. Kg2 {[%clk 0:01:25.1]} 34... e5
{[%clk 0:01:59.7]} 35. Rb3 {[%clk 0:00:58.7]} 35... Rb5 {[%clk 0:01:55.8]} 36.
Bg3 {[%clk 0:00:56.8]} 36... f5 {[%clk 0:01:47.2]} 37. gxf6 {[%clk 0:00:47.2]}
37... Bxf6 {[%clk 0:01:47.4]} 38. Kf3 {[%clk 0:00:46.7]} 38... Re3+ {[%clk
0:01:46]} 39. Rxe3 {[%clk 0:00:46.9]} 39... dxe3 {[%clk 0:01:46.2]} 40. Rc4
{[%clk 0:00:47.1]} 40... Kf7 {[%clk 0:01:40.8]} 41. Kxe3 {[%clk 0:00:46.3]}
41... Ke6 {[%clk 0:01:41.1]} 42. Ke4 {[%clk 0:00:42.6]} 42... Rb8 {[%clk
0:01:41]} 43. Be1 {[%clk 0:00:40.9]} 43... Rh8 {[%clk 0:01:37.3]} 44. Rc2 {[%clk
0:00:39.7]} 44... Bxh4 {[%clk 0:01:35.1]} 45. Rh2 {[%clk 0:00:37.6]} 45... Bf6
{[%clk 0:01:34.4]} 46. Rd2 {[%clk 0:00:22.7]} 46... Be7 {[%clk 0:01:28.2]} 47.
Bg3 {[%clk 0:00:20.2]} 47... Rg8 {[%clk 0:01:24.1]} 48. Bxe5 {[%clk 0:00:17.8]}
48... Rg4+ {[%clk 0:01:23.9]} 49. Bf4 {[%clk 0:00:18]} 49... Bg5 {[%clk
0:01:20.4]} 50. Rd6+ {[%clk 0:00:18]} 50... Ke7 {[%clk 0:01:17.6]} 51. Kf5
{[%clk 0:00:18.4]} 51... Rxf4+ {[%clk 0:01:16.8]} 52. Kxg5 {[%clk 0:00:18.8]}
52... Rxb4 {[%clk 0:01:16.6]} 53. Rxc6 {[%clk 0:00:19.4]} 53... Kd7 {[%clk
0:01:16.7]} 54. Rd6+ {[%clk 0:00:18.7]} 54... Kc7 {[%clk 0:01:14.6]} 55. Kf5
{[%clk 0:00:18.9]} 55... Rb1 {[%clk 0:01:14]} 56. Ke5 {[%clk 0:00:18.8]} 56...
Rc1 {[%clk 0:01:12.5]} 57. Kd5 {[%clk 0:00:17.7]} 57... Rd1+ {[%clk 0:01:12.6]}
58. Ke6 {[%clk 0:00:17.7]} 58... Re1+ {[%clk 0:01:04.9]} 59. Kd5 {[%clk
0:00:17.6]} 59... Rd1+ {[%clk 0:01:05]} 60. Ke6 {[%clk 0:00:17.9]} 60... Re1+
{[%clk 0:01:05.1]} 61. Kd5 {[%clk 0:00:18.1]} 61... Rd1+ {[%clk 0:01:05.3]}
1/2-1/2